fUST/lending_fUST_20240619
["ID","MTS","AMOUNT","RATE_DAILY","PERIOD"]
[329902138,1718808656447,-10474.77,0.00024931,5]
[329902139,1718808656456,-500.0,0.00024931,5]
[329902140,1718808656465,-500.0,0.00024931,5]
[329902141,1718808656476,-500.0,0.00024931,5]
[329902142,1718808656485,-500.0,0.00024931,5]
[329902143,1718808656494,-1612.7,0.00024931,5]
[329902144,1718808656503,-500.0,0.00024931,5]
[329902145,1718808656511,-500.0,0.00024931,5]
[329902146,1718808656520,-500.0,0.00024931,5]
[329902147,1718808656529,-500.0,0.00024931,5]
[329902148,1718808656538,-500.0,0.00024931,5]
[329902149,1718808656547,-500.0,0.00024931,5]
[329902150,1718808656556,-503.77443766,0.00024931,5]
[329902151,1718808656565,-500.0,0.00024931,5]
[329902152,1718808656574,-500.0,0.00024931,5]
[329902153,1718808656583,-500.0,0.00024931,5]
[329902154,1718808656592,-500.0,0.00024931,5]
[329902155,1718808656600,-500.0,0.00024931,5]
[329902156,1718808656610,-500.0,0.00024931,5]
[329902157,1718808656619,-513.79696058,0.00024931,5]
[329902158,1718808656628,-500.0,0.00024931,5]
[329902159,1718808656637,-500.0,0.00024931,5]
[329902160,1718808656647,-500.0,0.00024931,5]
[329902161,1718808656657,-500.0,0.00024931,5]
[329902162,1718808656666,-500.0,0.00024931,5]
[329902163,1718808656675,-507.22587316,0.00024931,5]
[329902164,1718808656685,-500.0,0.00024931,5]
[329902165,1718808656695,-449.57325902,0.00024931,5]
[329902166,1718808656704,-500.0,0.00024931,5]
[329902167,1718808656714,-500.0,0.00024931,5]
[329902168,1718808656728,-500.0,0.00024931,5]
[329902169,1718808656736,-502.6789397,0.00024931,5]
[329902170,1718808656746,-500.0,0.00024931,5]
[329902171,1718808656755,-500.0,0.00024931,5]
[329902172,1718808656766,-500.0,0.00024931,5]
[329902173,1718808656775,-500.0,0.00024931,5]
[329902174,1718808656785,-2706.84,0.00024931,5]
[329902175,1718808656795,-500.0,0.00024931,5]
[329902176,1718808656806,-500.0,0.00024931,5]
[329902177,1718808656816,-500.0,0.00024931,5]
[329902178,1718808656826,-500.0,0.00024931,5]
[329902179,1718808656835,-513.39,0.00024931,5]
[329902180,1718808656846,-1198.0,0.00024931,5]
[329902181,1718808656855,-893.5,0.00024931,5]
[329902182,1718808656865,-500.0,0.00024931,5]
[329902183,1718808656874,-3798.04,0.00024931,5]
[329902184,1718808656885,-608.02752242,0.00024931,5]
[329902185,1718808656896,-500.0,0.00024931,2]
[329902186,1718808656905,-500.0,0.00024931,5]
[329902187,1718808656916,-500.0,0.00024931,5]
[329902188,1718808656926,-500.0,0.00024931,5]
[329902189,1718808656935,-500.0,0.00024931,5]
[329902190,1718808656944,-530.71418767,0.00024931,5]
[329902191,1718808656954,-500.0,0.00024931,5]
[329902192,1718808656963,-500.0,0.00024931,2]
[329902193,1718808656974,-3373.49,0.00024931,5]
[329902194,1718808656983,-500.0,0.00024931,5]
[329902195,1718808656992,-500.0,0.00024994,5]
[329902196,1718808657067,-500.0,0.00024995,5]
[329902197,1718808657078,-762.62906153,0.00024996,2]
[329902198,1718808657089,-287.27800473,0.00024996,2]
[329902199,1718808657099,-389.2994727,0.00024996,2]
[329902200,1718808657109,-500.0,0.00024997,5]
[329902201,1718808657119,-500.0,0.00024997,5]
[329902202,1718808657129,-500.0,0.00024997,5]
[329902203,1718808657139,-615.37066309,0.00025,2]
[329902204,1718808657148,-402.10409234,0.00025,2]
[329902205,1718808657158,-16224.46832711,0.00025,2]
[329902206,1718808657169,-154.56891221,0.00025176,2]
[329902207,1718808657179,-500.0,0.00025204,5]
[329902208,1718808657188,-500.0,0.00025204,5]
[329902209,1718808657197,-500.0,0.00025204,5]
[329902210,1718808657206,-500.0,0.00025204,5]
[329902211,1718808657216,-500.0,0.00025204,5]
[329902212,1718808657228,-475.47000235,0.00025204,5]
[329902213,1718808657237,-500.0,0.00025204,5]
[329902214,1718808657247,-500.0,0.00025204,5]
[329902215,1718808657257,-500.0,0.00025204,5]
[329902216,1718808657267,-500.0,0.00025205,5]
[329902217,1718808657276,-500.0,0.00025205,5]
[329902218,1718808657286,-259.71227245,0.00025205,5]
[329902219,1718808657296,-394.67507055,0.00025205,5]
[329902220,1718808657306,-500.0,0.00025205,5]
[329902221,1718808657316,-500.0,0.00025205,5]
[329902222,1718808657326,-500.0,0.00025205,5]
[329902223,1718808657336,-500.0,0.00025205,5]
[329902224,1718808657346,-500.0,0.00025205,5]
[329902225,1718808657356,-638.84,0.00025205,5]
[329902226,1718808657366,-564.48502844,0.00025205,5]
[329902227,1718808657376,-500.0,0.00025205,5]
[329902228,1718808657385,-500.0,0.00025205,5]
[329902229,1718808657395,-500.0,0.00025205,5]
[329902230,1718808657405,-500.0,0.00025205,5]
[329902231,1718808657415,-500.0,0.00025205,5]
[329902232,1718808657426,-500.0,0.00025205,5]
[329902233,1718808657436,-500.0,0.00025205,5]
[329902234,1718808657446,-500.0,0.00025205,5]
[329902235,1718808657455,-517.16394058,0.00025205,5]
[329902236,1718808657466,-268.28242987,0.00025205,5]
[329902237,1718808657477,-500.0,0.00025205,5]
[329902238,1718808657487,-548.51672985,0.00025205,5]
[329902239,1718808657496,-500.0,0.00025205,5]
[329902240,1718808657507,-500.0,0.00025205,5]
[329902241,1718808657517,-500.0,0.00025205,5]
[329902242,1718808657526,-500.0,0.00025205,5]
[329902243,1718808657536,-500.0,0.00025205,5]
[329902244,1718808657546,-500.0,0.00025205,5]
[329902245,1718808657556,-500.0,0.00025205,5]
[329902246,1718808657565,-500.0,0.00025205,5]
[329902247,1718808657575,-500.0,0.00025205,5]
[329902248,1718808657585,-517.17281008,0.00025205,5]
[329902249,1718808657595,-500.0,0.00025205,5]
[329902250,1718808657605,-500.0,0.00025205,5]
[329902251,1718808657615,-500.0,0.00025205,5]
[329902252,1718808657624,-500.0,0.00025205,5]
[329902253,1718808657634,-500.0,0.00025205,5]
[329902254,1718808657643,-500.0,0.00025205,5]
[329902255,1718808657652,-500.0,0.00025205,5]
[329902256,1718808657662,-500.0,0.00025205,5]
[329902257,1718808657672,-177.21669797,0.00025205,5]
[329902258,1718808657682,-522.92237026,0.00025205,5]
[329902259,1718808657692,-500.0,0.00025205,5]
[329902260,1718808657702,-534.37,0.00025205,5]
[329902261,1718808657712,-500.0,0.00025205,5]
[329902262,1718808657727,-500.0,0.00025205,5]
[329902263,1718808657737,-500.0,0.00025205,5]
[329902264,1718808657747,-423.3353225,0.00025205,5]
[329902265,1718808657758,-500.0,0.00025205,5]
[329902266,1718808657768,-500.0,0.00025205,5]
[329902267,1718808657778,-181.81897222,0.00025205,5]
[329902268,1718808657787,-511.95249391,0.00025205,5]
[329902269,1718808657798,-500.0,0.00025205,5]
[329902270,1718808657808,-500.0,0.00025205,5]
[329902271,1718808657818,-500.0,0.00025205,5]
[329902272,1718808657827,-500.0,0.00025205,5]
[329902273,1718808657837,-500.0,0.00025205,5]
[329902274,1718808657847,-500.0,0.00025205,5]
[329902275,1718808657856,-500.0,0.00025205,5]
[329902276,1718808657866,-500.0,0.00025205,5]
[329902277,1718808657876,-500.0,0.00025205,5]
[329902278,1718808657885,-500.0,0.00025205,5]
[329902279,1718808657895,-509.11692237,0.00025205,5]
[329902280,1718808657904,-500.0,0.00025205,5]
[329902281,1718808657914,-500.0,0.00025205,5]
[329902282,1718808657924,-500.0,0.00025205,5]
[329902283,1718808657933,-500.0,0.00025205,5]
[329902284,1718808657943,-506.48097034,0.00025205,5]
[329902285,1718808657952,-500.0,0.00025205,5]
[329902286,1718808657962,-500.0,0.00025205,5]
[329902287,1718808657974,-500.0,0.00025205,5]
[329902288,1718808657984,-504.10859024,0.00025205,5]
[329902289,1718808657994,-500.0,0.00025205,5]
[329902290,1718808658003,-500.0,0.00025205,5]
[329902291,1718808658014,-500.0,0.00025205,5]
[329902292,1718808658023,-500.0,0.00025205,5]
[329902293,1718808658033,-500.0,0.00025205,5]
[329902294,1718808658043,-500.0,0.00025205,5]
[329902295,1718808658053,-500.0,0.00025205,5]
[329902296,1718808658064,-500.0,0.00025205,5]
[329902297,1718808658074,-500.0,0.00025205,5]
[329902298,1718808658085,-500.0,0.00025205,5]
[329902299,1718808658095,-500.0,0.00025205,5]
[329902300,1718808658105,-500.0,0.00025205,5]
[329902301,1718808658116,-500.0,0.00025205,5]
[329902302,1718808658127,-500.0,0.00025205,5]
[329902303,1718808658140,-500.0,0.00025205,5]
[329902304,1718808658150,-500.0,0.00025205,5]
[329902305,1718808658160,-500.0,0.00025205,5]
[329902306,1718808658170,-500.0,0.00025205,5]
[329902307,1718808658180,-500.0,0.00025205,5]
[329902308,1718808658190,-500.0,0.00025205,5]
[329902309,1718808658200,-500.0,0.00025205,5]
[329902310,1718808658209,-729.37,0.00025205,5]
[329902311,1718808658220,-500.0,0.00025205,5]
[329902312,1718808658230,-500.0,0.00025205,5]
[329902313,1718808658239,-500.0,0.00025205,5]
[329902314,1718808658249,-500.0,0.00025205,5]
[329902315,1718808658269,-812.37,0.00025205,5]
[329902316,1718808658279,-626.2902236,0.00025205,5]
[329902317,1718808658288,-500.0,0.00025205,5]
[329902318,1718808658297,-540.3859076,0.00025205,5]
[329902319,1718808658307,-500.0,0.00025205,5]
[329902320,1718808658317,-959.28,0.00025205,5]
[329902321,1718808658390,-500.0,0.00025205,5]
[329902322,1718808658399,-500.0,0.00025205,5]
[329902323,1718808658409,-729.94,0.00025205,5]
[329902324,1718808658419,-510.72553234,0.00025205,5]
[329902325,1718808658430,-500.0,0.00025205,5]
[329902326,1718808658439,-752.72,0.00025205,5]
[329902327,1718808658449,-500.0,0.00025205,5]
[329902328,1718808658459,-500.0,0.00025205,5]
[329902329,1718808658471,-500.0,0.00025205,5]
[329902330,1718808658480,-500.0,0.00025205,5]
[329902331,1718808658489,-500.0,0.00025205,5]
[329902332,1718808658499,-500.0,0.00025205,5]
[329902333,1718808658509,-500.0,0.00025205,5]
[329902334,1718808658518,-535.25728367,0.00025205,5]
[329902335,1718808658527,-500.0,0.00025205,5]
[329902336,1718808658536,-500.0,0.00025205,5]
[329902337,1718808658546,-500.0,0.00025205,5]
[329902338,1718808658556,-500.0,0.00025205,5]
[329902339,1718808658566,-500.0,0.00025205,5]
[329902340,1718808658576,-517.41341685,0.00025205,2]
[329902341,1718808658585,-7346.63,0.00025205,5]
[329902342,1718808658596,-500.0,0.00025205,5]
[329902343,1718808658606,-500.0,0.00025205,5]
[329902344,1718808658616,-2197.0,0.00025205,5]
[329902345,1718808658625,-615.4565003,0.00025205,5]
[329902346,1718808658635,-505.51698082,0.00025205,5]
[329902347,1718808658644,-2865.21,0.00025205,5]
[329902348,1718808658655,-500.0,0.00025205,5]
[329902349,1718808658665,-500.0,0.00025205,5]
[329902350,1718808658675,-500.0,0.00025205,5]
[329902351,1718808658684,-500.0,0.00025205,5]
[329902352,1718808658694,-500.0,0.00025205,5]
[329902353,1718808658703,-500.0,0.00025205,5]
[329902354,1718808658714,-500.0,0.00025205,5]
[329902355,1718808658728,-500.0,0.00025205,5]
[329902356,1718808658738,-2545.06,0.00025205,5]
[329902357,1718808658748,-500.0,0.00025205,5]
[329902358,1718808658759,-500.0,0.00025205,5]
[329902359,1718808658768,-1519.01,0.00025205,5]
[329902360,1718808658778,-331.68583426,0.00025205,5]
[329902361,1718808658788,-500.0,0.00025205,5]
[329902362,1718808658798,-508.73649485,0.00025205,5]
[329902363,1718808658808,-538.26774558,0.00025205,5]
[329902364,1718808658818,-247.42487245,0.00025205,5]
[329902365,1718808658828,-7530.94,0.00025205,5]
[329902366,1718808658838,-500.0,0.00025205,5]
[329902367,1718808658846,-500.0,0.00025205,5]
[329902368,1718808658857,-500.0,0.00025205,5]
[329902369,1718808658866,-500.0,0.00025205,5]
[329902370,1718808658875,-500.0,0.00025205,5]
[329902371,1718808658885,-567.21,0.00025205,5]
[329902372,1718808658895,-500.0,0.00025205,5]
[329902373,1718808658905,-500.0,0.00025205,5]
[329902374,1718808658915,-500.0,0.00025205,5]
[329902375,1718808658925,-500.0,0.00025205,5]
[329902376,1718808658935,-500.0,0.00025205,5]
[329902377,1718808658945,-550.28,0.00025205,5]
[329902378,1718808658955,-548.49980313,0.00025205,5]
[329902379,1718808658964,-500.0,0.00025205,5]
[329902380,1718808658976,-270.58485921,0.00025205,2]
[329902381,1718808658986,-500.0,0.00025205,5]
[329902382,1718808658995,-9018.11,0.00025205,5]
[329902383,1718808659005,-512.60659034,0.00025205,5]
[329902384,1718808659015,-500.0,0.00025205,5]
[329902385,1718808659024,-500.0,0.00025205,5]
[329902386,1718808659034,-500.0,0.00025205,5]
[329902387,1718808659044,-3657.83,0.00025205,5]
[329902388,1718808659053,-500.0,0.00025205,5]
[329902389,1718808659063,-500.0,0.00025205,5]
[329902390,1718808659072,-500.0,0.00025205,5]
[329902391,1718808659082,-500.0,0.00025205,5]
[329902392,1718808659092,-199.13939028,0.00025205,5]
[329902393,1718808659102,-500.0,0.00025205,5]
[329902394,1718808659112,-500.0,0.00025205,5]
[329902395,1718808659121,-500.0,0.00025205,5]
[329902396,1718808659131,-2113.34,0.00025205,5]
[329902397,1718808659141,-500.0,0.00025205,5]
[329902398,1718808659150,-500.0,0.00025205,5]
[329902399,1718808659160,-500.0,0.00025205,5]
[329902400,1718808659169,-798.61,0.00025205,5]
[329902401,1718808659179,-500.0,0.00025205,5]
[329902402,1718808659188,-500.0,0.00025205,5]
[329902403,1718808659198,-500.0,0.00025205,5]
[329902404,1718808659208,-526.82638256,0.00025205,5]
[329902405,1718808659218,-500.0,0.00025205,5]
[329902406,1718808659228,-500.0,0.00025205,5]
[329902407,1718808659237,-500.0,0.00025205,5]
[329902408,1718808659247,-1019.0,0.00025205,5]
[329902409,1718808659257,-605.64135694,0.00025205,5]
[329902410,1718808659266,-500.0,0.00025205,5]
[329902411,1718808659276,-500.0,0.00025205,5]
[329902412,1718808659286,-500.0,0.00025205,5]
[329902413,1718808659296,-2730.49,0.00025205,5]
[329902414,1718808659306,-500.0,0.00025205,5]
[329902415,1718808659316,-264.48764903,0.00025205,5]
[329902416,1718808659325,-154.92665267,0.00025205,5]
[329902417,1718808659335,-501.80438994,0.00025205,5]
[329902418,1718808659344,-877.43,0.00025205,5]
[329902419,1718808659354,-500.0,0.00025205,5]
[329902420,1718808659363,-500.0,0.00025205,5]
[329902421,1718808659373,-500.0,0.00025205,5]
[329902422,1718808659382,-500.0,0.00025205,5]
[329902423,1718808659392,-500.0,0.00025205,5]
[329902424,1718808659401,-500.0,0.00025205,5]
[329902425,1718808659411,-500.0,0.00025205,5]
[329902426,1718808659421,-500.0,0.00025205,5]
[329902427,1718808659431,-500.0,0.00025205,5]
[329902428,1718808659442,-562.5,0.00025205,5]
[329902429,1718808659452,-500.0,0.00025205,5]
[329902430,1718808659461,-500.0,0.00025205,5]
[329902431,1718808659473,-500.0,0.00025205,5]
[329902432,1718808659483,-500.0,0.00025205,5]
[329902433,1718808659492,-500.0,0.00025205,5]
[329902434,1718808659502,-500.0,0.00025205,5]
[329902435,1718808659570,-500.0,0.00025205,5]
[329902436,1718808659586,-584.52,0.00025205,5]
[329902437,1718808659597,-500.0,0.00025205,5]
[329902438,1718808659607,-500.0,0.00025205,5]
[329902439,1718808659618,-568.0065346,0.00025205,5]
[329902440,1718808659627,-500.0,0.00025205,5]
[329902441,1718808659637,-500.0,0.00025205,5]
[329902442,1718808659647,-500.0,0.00025205,5]
[329902443,1718808659657,-500.0,0.00025205,5]
[329902444,1718808659666,-500.0,0.00025205,5]
[329902445,1718808659676,-500.0,0.00025205,5]
[329902446,1718808659685,-500.0,0.00025205,5]
[329902447,1718808659695,-500.0,0.00025205,5]
[329902448,1718808659704,-500.0,0.00025205,5]
[329902449,1718808659714,-500.0,0.00025205,5]
[329902450,1718808659729,-500.0,0.00025205,5]
[329902451,1718808659738,-500.0,0.00025205,5]
[329902452,1718808659747,-500.0,0.00025205,5]
[329902453,1718808659758,-500.0,0.00025205,5]
[329902454,1718808659767,-500.0,0.00025205,5]
[329902455,1718808659777,-1141.31,0.00025205,5]
[329902456,1718808659787,-7226.39835168,0.00025205,5]
[329902457,1718808659953,-2007.10844194,0.00025205,5]
[329902458,1718808659966,-871.13088573,0.00025205,5]
[329902459,1718808659990,-370.13232065,0.00025205,5]
[329902460,1718808660007,-500.0,0.00025205,5]
[329902461,1718808660026,-500.0,0.00025205,5]
[329902462,1718808660046,-105.64913249,0.00025205,5]
[329902463,1718808660074,-394.35086751,0.00025205,5]
[329902464,1718808660090,-500.0,0.00025205,5]
[329902465,1718808660109,-1463.74037142,0.00025205,5]
[329902466,1718808660128,-148.95962858,0.00025205,5]
[329902467,1718808660145,-500.0,0.00025205,5]
[329902468,1718808660164,-500.0,0.00025205,5]
[329902469,1718808660183,-500.0,0.00025205,5]
[329902470,1718808660197,-607.10341095,0.00025205,5]
[329902471,1718808660212,-500.0,0.00025205,5]
[329902472,1718808660231,-567.22813028,0.00025205,5]
[329902473,1718808660245,-500.0,0.00025205,5]
[329902474,1718808660262,-500.0,0.00025205,5]
[329902475,1718808660276,-500.0,0.00025205,5]
[329902476,1718808660291,-500.0,0.00025205,5]
[329902477,1718808660306,-500.0,0.00025205,5]
[329902478,1718808660321,-500.0,0.00025205,5]
[329902479,1718808660336,-500.0,0.00025205,5]
[329902480,1718808660350,-289.916681,0.00025205,5]
[329902481,1718808660368,-338.5049189,0.00025205,5]
[329902482,1718808660382,-500.0,0.00025205,5]
[329902483,1718808660396,-500.0,0.00025205,5]
[329902484,1718808660410,-500.0,0.00025205,5]
[329902485,1718808660424,-1975.39508111,0.00025205,5]
[329902486,1718808660609,155.0,0.000225,30]
[329902487,1718808660932,525.00342598,0.00022499,60]
[329902488,1718808660987,155.0,0.000225,30]
[329902489,1718808661168,155.0,0.000225,30]
[329902490,1718808661264,248.15452672,0.000225,30]
[329902492,1718808819160,10000.0,0.000225,30]
[329902493,1718808819246,150.0,0.000225,30]
[329902494,1718808819298,20000.0,0.000225,30]
[329902497,1718809247418,163.8384,9.999e-05,2]
[329902498,1718809278211,154.81422293,9.999e-05,2]
[329902499,1718809287620,2097.38249461,9.999e-05,2]
[329902500,1718809296216,156.0754106,9.999e-05,2]
[329902501,1718809299060,16206.17898442,9.999e-05,2]
[329902502,1718809303614,1141.06753466,9.999e-05,2]
[329902503,1718809311030,283.77820805,9.999e-05,2]
[329902504,1718809317741,-1277.5,0.00017766,2]
[329902505,1718809317762,-189.1,0.00017766,2]
[329902506,1718809317783,-533.4,0.00018976,2]
[329902507,1718809337926,300.56413617,9.999e-05,2]
[329902508,1718809359916,300.12569439,9.999e-05,2]
[329902509,1718809638152,-154.81422293,0.00017749,2]
[329902510,1718809638176,-151.23092456,0.0001775,2]
[329902511,1718809641115,-222.00288623,0.0001775,2]
[329902512,1718809650153,-268.58867592,0.0001775,2]
[329902558,1718809832725,-191.6,0.0001776,2]
[329902560,1718809832734,-78.9513048,0.00018976,2]
[329902871,1718809838692,-285.8472365,0.000189,2]
[329902874,1718809838702,-44.94939029,0.00018976,2]
[329902877,1718809838715,-483.2899054,0.00018976,2]
[329902879,1718809838725,-202.43399855,0.00018977,2]
[329902881,1718809838735,-154.81422293,0.00020504,2]
[329902883,1718809838745,-209.654322,0.00020505,2]
[329902885,1718809838754,-712.5,0.00021096,2]
[329902887,1718809838764,-163.798841,0.00021096,2]
[329902888,1718809838774,-221.0,0.00021499,2]
[329902890,1718809838784,-3000.0,0.000215,2]
[329902893,1718809838795,-503.96557219,0.000215,2]
[329902895,1718809838806,-3000.0,0.0002151,2]
[329902897,1718809838816,-3000.0,0.0002152,2]
[329902899,1718809838826,-1402.6127748,0.0002153,2]
[329902901,1718809838838,-1597.3872252,0.0002153,2]
[329902903,1718809838847,-3000.0,0.0002154,2]
[329902904,1718809838857,-3000.0,0.0002155,2]
[329902906,1718809838866,-845.38890333,0.0002156,2]
[329902908,1718809838878,-2154.61109667,0.0002156,2]
[329902909,1718809838887,-332.69208508,0.0002157,2]
[329902910,1718809838898,-1977.67971565,0.0002157,2]
[329902936,1718809840957,-689.62819927,0.0002157,2]
[329902937,1718809840967,-830.34608169,0.0002158,2]
[329902947,1718809843935,-2169.65391831,0.0002158,2]
[329902949,1718809843945,-1773.84718043,0.0002159,2]
[329903149,1718810742232,411.30226265,9.999e-05,2]
[329903150,1718810742261,319.66932314,9.999e-05,2]
[329903151,1718810742292,257.47137691,9.999e-05,2]
[329903152,1718810742321,411.30226265,9.999e-05,2]
[329903153,1718810742347,756.85907577,9.999e-05,2]
[329903154,1718810769666,154.81422293,9.999e-05,2]
[329903155,1718810779090,10000.0,0.000225,30]
[329903156,1718810789864,10000.0,0.000225,30]
[329903157,1718810816703,7684.0,0.000225,30]
[329903158,1718810836133,-607.19060049,0.00019489,2]
[329903159,1718810836155,-190.56482433,0.0001949,2]
[329903160,1718810836177,-135.38326792,0.00020266,2]
[329903161,1718810837161,-74.27105408,0.00020266,2]
[329903162,1718810837182,-171.582668,0.00020366,2]
[329903163,1718810837202,-62.07792368,0.00020478,2]
[329903164,1718810846105,-154.81422293,0.00020477,2]
[329903165,1718810846127,-369.51266191,0.00020478,2]
[329903166,1718810852086,-21.82056851,0.00020478,2]
[329903167,1718810852107,-220.24778573,0.00021096,2]
[329903170,1718810968542,155.70941146,9.9e-05,2]
[329903171,1718810968568,117.66395085,9.9e-05,2]
[329903173,1718811032750,-154.81422293,0.00020477,2]
[329903174,1718811032760,-212.60883189,0.00020478,2]
[329903175,1718811032769,-178.08533369,0.00020478,2]
[329903176,1718811032779,-55.49161149,0.00021096,2]
[329903196,1718811033197,-324.87774632,0.00021096,2]
[329903244,1718811041475,-76.25785646,0.00021096,2]
[329903247,1718811041488,-163.798841,0.00021096,2]
[329903249,1718811041499,-225.27800044,0.00021096,2]
[329903266,1718811041657,-925.90459035,0.00021096,2]
[329903268,1718811041668,-154.81422293,0.00021096,2]
[329903270,1718811041678,-10987.73753168,0.00021096,2]
[329903272,1718811041691,-5038.83555639,0.00021096,2]
[329903274,1718811041701,-440.96987564,0.0002144,2]
[329903276,1718811041711,-3000.0,0.000215,2]
[329903278,1718811041720,-3000.0,0.0002151,2]
[329903280,1718811041730,-382.61261468,0.00021519,2]
[329903282,1718811041739,-3000.0,0.0002152,2]
[329903284,1718811041749,-3000.0,0.0002153,2]
[329903286,1718811041758,-3000.0,0.0002154,2]
[329903288,1718811041767,-3000.0,0.0002155,2]
[329903290,1718811041777,-3000.0,0.0002156,2]
[329903292,1718811041786,-3000.0,0.0002157,2]
[329903294,1718811041795,-3000.0,0.0002158,2]
[329903296,1718811041804,-3000.0,0.0002159,2]
[329903298,1718811041813,-3000.0,0.000216,2]
[329903300,1718811041823,-3000.0,0.0002161,2]
[329903302,1718811041833,-3000.0,0.0002162,2]
[329903304,1718811041843,-168.74529087,0.00021623,2]
[329903306,1718811041852,-3000.0,0.0002163,2]
[329903308,1718811041861,-3903.208041,0.0002164,2]
[329903310,1718811041871,-154.98450155,0.00021648,2]
[329903312,1718811041881,-159.62941992,0.00021648,2]
[329903314,1718811041890,-167.30657264,0.00021648,2]
[329903317,1718811041900,-264.9350812,0.00021648,2]
[329903319,1718811041910,-154.98450155,0.00021649,2]
[329903321,1718811041919,-317.64353351,0.000217,2]
[329903323,1718811041928,-512.74347973,0.0002172,2]
[329903325,1718811041938,-500.0,0.0002172,2]
[329903327,1718811041948,-500.0,0.0002172,2]
[329903329,1718811041958,-461.22953057,0.0002172,2]
[329903331,1718811041967,-611.59685143,0.0002172,2]
[329903332,1718811041976,-500.0,0.0002172,2]
[329903335,1718811041986,-500.0,0.0002172,2]
[329903336,1718811041997,-466.68277838,0.0002172,2]
[329903338,1718811042007,-500.0,0.0002172,2]
[329903340,1718811042016,-435.34249279,0.0002172,2]
[329903342,1718811042025,-500.0,0.0002172,2]
[329903344,1718811042034,-500.0,0.0002172,2]
[329903346,1718811042044,-500.0,0.0002172,2]
[329903348,1718811042053,-500.0,0.0002172,2]
[329903350,1718811042062,-500.0,0.0002172,2]
[329903352,1718811042072,-500.0,0.0002172,2]
[329903354,1718811042082,-500.0,0.0002172,2]
[329903356,1718811042091,-500.0,0.0002172,2]
[329903358,1718811042101,-500.0,0.0002172,2]
[329903359,1718811042110,-500.0,0.0002172,2]
[329903360,1718811042119,-500.0,0.0002172,2]
[329903361,1718811042128,-500.0,0.0002172,2]
[329903362,1718811042139,-500.0,0.0002172,2]
[329903363,1718811042148,-500.0,0.0002172,2]
[329903364,1718811042157,-500.0,0.0002172,2]
[329903365,1718811042167,-500.0,0.0002172,2]
[329903366,1718811042177,-500.0,0.0002172,2]
[329903367,1718811042189,-500.0,0.0002172,2]
[329903368,1718811042199,-500.0,0.0002172,2]
[329903369,1718811042208,-435.11988088,0.0002172,2]
[329903370,1718811042218,-500.0,0.0002172,2]
[329903371,1718811042227,-233.62327406,0.0002172,2]
[329903372,1718811042237,-500.0,0.0002172,2]
[329903373,1718811042247,-500.0,0.0002172,2]
[329903374,1718811042256,-500.0,0.0002172,2]
[329903375,1718811042266,-500.0,0.0002172,2]
[329903376,1718811042275,-500.0,0.0002172,2]
[329903377,1718811042288,-166.666666,0.00021918,2]
[329903378,1718811042297,-166.666666,0.00022431,2]
[329903379,1718811042307,-653.24490868,0.00022497,2]
[329903380,1718811042317,-1304.12167784,0.00022498,2]
[329903381,1718811042326,-500.70406251,0.00022499,2]
[329903518,1718811044539,-0.00388472,0.000204,2]
[329903758,1718811047606,-149.99611528,0.000204,2]